Cogmind - Beta 16.1 @@@ ROGUE MODE // 2026.02.27 @ 22:00:46 Player: Gingerlink Result: Self-destructed Performance ------------- Evolutions (1) 500 Regions Visited (3) 600 Robots Destroyed (18) 90 Value Destroyed (565) 565 Prototype IDs (1) 20 Alien Tech Used (0) 0 Bonus (0) 0 TOTAL SCORE: 1775 Bonus ------- None Cogmind --------- Core Integrity 241/400 Matter 300/300 Energy 125/125 System Corruption 3% Temperature Cool (0) Movement Rolling (140) Ox4 Location -9/Mines Parts ------- > --- POWER (1) -------- Light Ion Engine > --- PROPULSION (2) --- Wheel > --- UTILITY (2) ------ High-capacity Storage Unit Utility Shielding > --- WEAPON (4) ------- Improved Medium Laser > --- INVENTORY (20) --- Light Treads Light Treads Aluminum Leg Aluminum Leg Aluminum Leg Aluminum Leg Maul Peak State ------------ > --- POWER ------------ Light Ion Engine > --- PROPULSION ------- Wheel Compact Wheel > --- UTILITY ---------- High-capacity Storage Unit Utility Shielding > --- WEAPON ----------- Small Laser Beam Rifle Improved Medium Laser Heavy Assault Rifle > --- INVENTORY -------- Light Treads Light Treads Aluminum Leg Aluminum Leg Aluminum Leg Aluminum Leg Small Storage Unit Small Laser Maul [Rating: 14] Favorites ----------- Power Light Ion Engine Engine Light Ion Engine Propulsion Aluminum Leg Leg Aluminum Leg Wheel Wheel Utility Utility Shielding Storage Small Storage Unit Protection Utility Shielding Weapon Medium Laser Energy Gun Medium Laser Ballistic Gun Heavy Assault Rifle Build | -11 -10 -9 -9 ------- Run | Yrd Mat Mat Min Slots Evolved 2 | . . 2 . Power . | . . . . Propulsion . | . . . . Utility . | . . . . Weapon 2 | . . 2 . Parts Attached 18 | 7 4 7 . Power 2 | 1 1 . . Engine 2 | 1 1 . . Core . | . . . . Reactor . | . . . . Propulsion 6 | 2 2 2 . Treads . | . . . . Leg 4 | 2 2 . . Wheel 2 | . . 2 . Hover . | . . . . Flight . | . . . . Utility 3 | 1 1 1 . Device . | . . . . Storage 2 | 1 . 1 . Processor . | . . . . Hackware . | . . . . Protection 1 | . 1 . . Artifact . | . . . . Weapon 7 | 3 . 4 . Energy Gun 5 | 2 . 3 . Energy Cannon . | . . . . Ballistic Gun 2 | 1 . 1 . Ballistic Cannon . | . . . . Launcher . | . . . . Special Weapon . | . . . . Impact Weapon . | . . . . Slashing Weapon . | . . . . Piercing Weapon . | . . . . Special Melee Weapon . | . . . . Unidentified Prototypes 1 | . . 1 . Parts Lost 7 | . 3 4 . Power 1 | . 1 . . Propulsion 2 | . 1 1 . Utility . | . . . . Weapon 4 | . 1 3 . Highest Loss Streak 3 | . 2 3 . To Critical Strikes . | . . . . Average Backups 6 | 3 5 6 . Power . | . . . . Propulsion 4 | 1 4 5 . Utility . | . . . . Weapon . | . . . . Tool/Special . | . . . . Unused Backups 4 | . . . 4 Power . | . . . . Propulsion 3 | . . . 3 Utility . | . . . . Weapon 1 | . . . 1 Tool/Special . | . . . . Average Slot Usage (%) 87 | . 90 86 . Engine 11 | . 13 11 . Leg 13 | . 27 3 . Wheel 10 | . . 17 . Storage 12 | . 14 11 . Protection 10 | . 10 11 . Energy Gun 20 | . 14 24 . Ballistic Gun 8 | . 8 7 . Peak Build Rating 14 | 6 7 14 . Average Rating 8 | 4 6 10 . On Entrance 5 | . 6 7 7 Avg Prop Armor Cover (%) . | . . . . Naked Turns . | . . . . Heaviest Build 54 | 14 15 54 . Greatest Support 26 | 20 20 26 . Greatest Overweight (x) 4 | 1 1 4 . Average Overweight (x) . | . . 1 . Largest Inventory Capacity 20 | 8 8 20 . Average Capacity 13 | 7 8 19 . Most Carried 9 | 6 6 9 . Average Carried 6 | 3 5 7 . Final Capacity 20 | 8 8 20 20 Final Carried 7 | 6 5 7 7 Class Distribution -------------------- 70% | Mutant 29% | Tank Dominant Class ---------------- Mutant | -10/Materials Tank | -9/Materials Tank | -9/Mines Resources | -11 -10 -9 -9 ----------- Run | Yrd Mat Mat Min Matter Collected 468 | 236 101 131 . Remotely . | . . . . Salvage Created 706 | . 274 432 . Parts 29 | . 9 20 . Haulers Intercepted . | . . . . Recyclers Shooed 1 | . . 1 . Parts Field Recycled . | . . . . Retrieved Matter . | . . . . Parts Self-Destructed . | . . . . Prevented . | . . . . Parts Restored . | . . . . Kills | -11 -10 -9 -9 ------- Run | Yrd Mat Mat Min Combat Hostiles Destroyed 17 | . 6 11 . Guns 17 | . 6 11 . Classes Destroyed 4 | . 1 3 . Watcher 1 | . . 1 . Swarmer 4 | . . 4 . Grunt 9 | . 6 3 . Sentry 4 | . . 4 . Best Kill Streak 6 | . 2 6 . Combat Bots Only 6 | . 2 6 . Max Kills in Single Turn 2 | . 1 2 . Gunslinging 1 | . . 1 . Exploded . | . . . . Melee . | . . . . Uniques/NPCs Destroyed . | . . . . Combat | -11 -10 -9 -9 -------- Run | Yrd Mat Mat Min Hostile Shots Fired 109 | . 54 55 . Missed 28 | . 12 16 . Hits 81 | . 42 39 . Projectile 81 | . 42 39 . AOE 1 | . 1 . . Critical Strikes 2 | . . 2 . Damage Taken 1169 | . 574 595 . Core 279 | . 120 159 . Absorbed by Shields . | . . . . Redirected to Shielding 21 | . 12 9 . Core Remaining (%) 76 | 100 52 . . Volleys Fired 63 | . 34 29 . Largest 4 | . 2 4 . Hottest 175 | . 70 175 . Shots Fired 123 | . 45 78 . Gun 123 | . 45 78 . Cannon . | . . . . Launcher . | . . . . Special . | . . . . Kinetic 36 | . 11 25 . Thermal 87 | . 34 53 . Explosive . | . . . . Electromagnetic . | . . . . Robot Hit Streak 10 | . 9 10 . Robot Miss Streak 6 | . 6 4 . Penetration Max . | . . . . Secondary Targets 2 | . . 2 . Max Gunslinging Chain 1 | . . 1 . Shots Hit Robots 79 | . 28 51 . Core Hits 32 | . 14 18 . Critical Kills . | . . . . Critical Parts Destroyed . | . . . . Critical Strikes 5 | . 2 3 . Burn 5 | . 2 3 . Melee Attacks . | . . . . Impact . | . . . . Slashing . | . . . . Piercing . | . . . . Sneak Attacks . | . . . . Combat Hostiles . | . . . . Follow-up Attacks . | . . . . Damage Inflicted 1084 | 6 362 716 . Guns 936 | . 351 585 . Cannons . | . . . . Explosions . | . . . . Melee . | . . . . Ramming 148 | 6 11 131 . Kinetic 261 | . 77 184 . Thermal 675 | . 274 401 . Explosive . | . . . . Electromagnetic . | . . . . Impact . | . . . . Slashing . | . . . . Piercing . | . . . . Highest Corruption 3 | . . 3 . Average Corruption 3 | . . 3 . Corruption Purged . | . . . . Corruption Blocked . | . . . . Effects 5 | . . 5 . Message Errors 2 | . . 2 . Matter Fused 1 | . . 1 . Data Loss (major) 1 | . . 1 . Alerts 1 | . . 1 . Overload Shots . | . . . . Overflow Damage . | . . . . Projectiles . | . . . . Explosions . | . . . . Melee . | . . . . Knockbacks 1 | . . 1 . Impact 1 | . . 1 . Kinetic . | . . . . Secondary . | . . . . Self-Inflicted Damage 62 | . . 62 . Shots . | . . . . Rammed 9 | . . 9 . Targets Rammed 15 | 3 3 9 . Kicked 6 | 3 3 . . Crushed . | . . . . Highest Temperature 510 | . 129 510 . Average Temperature 125 | . 62 173 . Received Heat Transfer 432 | . 273 159 . Effects 5 | . . 5 . Interference 4 | . . 4 . Short Circuit 1 | . . 1 . Siege Activations . | . . . . Martial Activations . | . . . . Shielding Activations . | . . . . Robots Disrupted . | . . . . Combat Hostiles . | . . . . Robots Corrupted . | . . . . Combat Hostiles . | . . . . Parts Fried . | . . . . Impact Corruptions . | . . . . Robots Melted . | . . . . Combat Hostiles . | . . . . Parts Melted 9 | . 1 8 . Heat Transferred 2101 | . 962 1139 . Parts Sabotaged . | . . . . Parts Stolen . | . . . . Parts Stripped . | . . . . Power Chain Reactions . | . . . . Alert | -11 -10 -9 -9 ------- Run | Yrd Mat Mat Min Maximum Alert Level . | . . . . Low Security (%) 100 | 100 100 100 . Level 1 . | . . . . Level 2 . | . . . . Level 3 . | . . . . Level 4 . | . . . . Level 5 . | . . . . High Security . | . . . . Max Security . | . . . . Peak Influence 129 | . 101 129 . Initial 46 | . . 29 46 Average 37 | . 40 44 . Influence Increases 514 | . 211 303 . Destroy 0b10 Robot/C 340 | . 120 220 . Destroy 0b10 Robot/NC 5 | . . 5 . Destroy Leader 92 | . 30 62 . Disable Machine 15 | . . 15 . Destroy Structure 2 | . 1 1 . Lose Combat Pursuer 60 | . 60 . . Influence Decreases 468 | . 140 253 75 Entered New Map 117 | . . 42 75 Time Decay 291 | . 110 181 . Lost Part 60 | . 30 30 . Squads Dispatched 4 | . 2 2 . Investigation 1 | . 1 . . Extermination . | . . . . Reinforcement 3 | . 1 2 . Assault . | . . . . Garrison . | . . . . Intercept . | . . . . Searches Triggered . | . . . . Construction Impeded . | . . . . Haulers Reinforced . | . . . . Active Scanning Responses . | . . . . Cargo Convoy Interrupts . | . . . . Stealth | -11 -10 -9 -9 --------- Run | Yrd Mat Mat Min Distress Signals 1 | . . 1 . Communications Jammed . | . . . . Distress Signals . | . . . . Times Spotted 30 | . 13 17 . Peak Tracking Total 7 | . 4 7 . Tactical Retreats 2 | . 2 . . Traps | -11 -10 -9 -9 ------- Run | Yrd Mat Mat Min Traps Triggered 1 | . 1 . . Indirectly . | . . . . Trap Hack Attempts . | . . . . Triggered . | . . . . Disarmed . | . . . . Reprogrammed . | . . . . Reused . | . . . . Traps Extracted . | . . . . Installed . | . . . . Triggered . | . . . . Machines | -11 -10 -9 -9 ---------- Run | Yrd Mat Mat Min Machines Disabled 1 | . . 1 . Max in Single Turn 1 | . . 1 . Machines Repaired . | . . . . Machines Dismantled . | . . . . Machines Sabotaged . | . . . . Overloaded Fab Kills . | . . . . Hacking | -11 -10 -9 -9 --------- Run | Yrd Mat Mat Min Machines Accessed . | . . . . Terminals . | . . . . Fabricators . | . . . . Repair Stations . | . . . . Recycling Units . | . . . . Scanalyzers . | . . . . Garrison Access . | . . . . Total Hacks . | . . . . Successful . | . . . . Failed . | . . . . Catastrophic . | . . . . Database Lockouts . | . . . . Manual . | . . . . Terminals . | . . . . Fabricators . | . . . . Repair Stations . | . . . . Recycling Units . | . . . . Scanalyzers . | . . . . Garrison Access . | . . . . Terminal Hacks . | . . . . Fabricator Hacks . | . . . . Repair Station Hacks . | . . . . Recycling Unit Hacks . | . . . . Scanalyzer . | . . . . Garrison Access Hacks . | . . . . Unauthorized Hacks . | . . . . Terminals . | . . . . Fabricators . | . . . . Repair Stations . | . . . . Recycling Units . | . . . . Scanalyzers . | . . . . Garrison Access . | . . . . Data Cores Recovered . | . . . . Used . | . . . . Hacking Detections . | . . . . Full Trace Events . | . . . . Feedback Events . | . . . . Feedback Blocked . | . . . . Robot Schematics Acquired . | . . . . Robots Built . | . . . . Authchips . | . . . . Time . | . . . . Total Robot Build Rating . | . . . . Part Schematics Acquired . | . . . . Parts Built . | . . . . Authchips . | . . . . Time . | . . . . Total Part Build Rating . | . . . . Part Studies Acquired . | . . . . Parts Repaired . | . . . . Time . | . . . . Parts Recycled . | . . . . Recycled Matter . | . . . . Retrieved Matter . | . . . . Retrieved Components . | . . . . Parts Scanalyzed . | . . . . Part Schematics Acquired . | . . . . Parts Damaged . | . . . . Bothacking | -11 -10 -9 -9 ------------ Run | Yrd Mat Mat Min Used RIF Installer . | . . . . Robots Hacked . | . . . . Non-combat . | . . . . Combat . | . . . . Robot Hacks Applied . | . . . . Relay Couplers Released . | . . . . Fabnet Peak Effective % . | . . . . Robots Rewired . | . . . . Allies Hacked . | . . . . Hacks Repelled . | . . . . Allies | -11 -10 -9 -9 -------- Run | Yrd Mat Mat Min Total Allies . | . . . . Largest Group . | . . . . Highest-Rated Group . | . . . . Highest-Rated Ally . | . . . . Total Orders . | . . . . Ally Attacks . | . . . . Total Damage . | . . . . Kills . | . . . . Allies Corrupted . | . . . . Allies Melted . | . . . . Intel | -11 -10 -9 -9 ------- Run | Yrd Mat Mat Min Active Infowar (turns) . | . . . . Robot Analysis Total . | . . . . Derelict Logs Recovered . | . . . . Drone Launches . | . . . . Drone Recoveries . | . . . . Exploration | -11 -10 -9 -9 ------------- Run | Yrd Mat Mat Min Turns Passed 895 | 110 323 462 . Spaces Moved 493 | 70 173 250 . Core 7 | 7 . . . Treads . | . . . . Legs 272 | 63 173 36 . Wheels 214 | . . 214 . Hover . | . . . . Flight . | . . . . Fastest Speed 50 | 50 120 105 . Average Speed 120 | 129 120 117 . Slowest Speed 260 | 190 190 260 . Overloaded Moves . | . . . . Propulsion Burnouts . | . . . . Robots Hopped . | . . . . Potential Cave-ins . | . . . . Cave-ins Triggered . | . . . . Exploration Rate (%) 15 | 3 31 25 3 Regions Visited 3 Branch Regions 1 Pre-discovered Areas . | . . . . Known Exits Taken . | . . . . Unknown Exits Taken 3 | 1 1 1 . Scrap Searched . | . . . . Spaces Dug . | . . . . Terrain Destroyed . | . . . . Melee . | . . . . Projectile . | . . . . AOE . | . . . . Terrain Rammed . | . . . . Walls Destroyed . | . . . . Machines Disabled . | . . . . Actions | -11 -10 -9 -9 --------- Run | Yrd Mat Mat Min Total 680 | 85 240 355 . Wait 78 | . 26 52 . Move 490 | 69 172 249 . Hop . | . . . . Pick Up 10 | 6 . 4 . Fast Attach 11 | 6 2 3 . Attach 2 | . 2 . . Detach 1 | . . 1 . Swap 7 | 1 1 5 . Drop 3 | . . 3 . Fire 63 | . 34 29 . Melee . | . . . . Ram 9 | . . 9 . Kick 6 | 3 3 . . Crush . | . . . . Escape Stasis . | . . . . Rewire . | . . . . Trap . | . . . . Miscellaneous . | . . . . Route ------- -11/Scrapyard -10/Materials (discovered 2 exits: [*Mat] / [*Min]) -9/Materials (discovered 3 exits: [*Min x2] / [*Sto]) -9/Mines History --------- Turn | Location | Event 47 | -11/Scrapyard | Discovered new exit (range 14) 111 | -11/Scrapyard | Entered Materials 257 | -10/Materials | Discovered new exit (range 12) 305 | -10/Materials | Build established: Mutant 319 | -10/Materials | Discovered new exit (range 16) 434 | -10/Materials | Entered another Materials area 434 | -9/Materials | Evolved 2 slots: Weapon x2 569 | -9/Materials | Discovered new exit (range 14) 705 | -9/Materials | Discovered new exit (range 16) 839 | -9/Materials | Discovered new exit (range 11) 896 | -9/Materials | Entered Mines 896 | -9/Mines | Self-destructed Last Messages --------------- R-06 Scavenger collects Flight Unit. R-06 Scavenger collects Lgt. Assault Rifle. Flight Unit melted. S-10 Pest destroyed. Acquired 15 matter. Critical hit (Burn: +37). Hvy. Assault Rifle destroyed. Y-45 Defender suffers critical hit (Burn). Lgt. Armor Plating melted. Y-45 Defender destroyed. R-06 Scavenger collects Hvy. Assault Rifle. G-34 Mercenary destroyed. R-06 Scavenger collects Sml. Laser. Acquired 18 matter. R-06 Scavenger collects Ion Engine. Slammed into R-06 Scavenger. K-01 Serf collects debris. LOCATION=UNKNOWN GOAL=ESCAPE Something is scanning the area. Map ----- +----------------------------------------------------+ | | | | | | | | | | | | | | | | | | | | | | | | | ???????????????????????????????????????????? | | ???????????????????????????????????????????? | | ???????????????????????????????????????????? | | ???????????????????????????????????????????? | | ???????????????????????????????????????????? | | ???????????????????????????????????????????? | | ???????????????????????????????????????????? | | ???????????????????????????????????????????? | | ???????????????????????????????????????????? | | ????????????????????????????##?????????????? | | ????????????????????##?????# ##????????????? | | ???????????????????## #### ##### #????? | | ???????????????????# t s ??????? | | ????????????????????# t @ #?????????????? | | ????????????????????## ##?????????????? | | ?????????????????????# ##??????????????? | | ?????????????????????# ##???????????????? | | ?????????????????????## ##????????????????? | | ??????????????????????###??????????????????? | | ???????????????????????????????????????????? | | ???????????????????????????????????????????? | | ???????????????????????????????????????????? | | ???????????????????????????????????????????? | | ???????????????????????????????????????????? | | ???????????????????????????????????????????? | | ???????????????????????????????????????????? | | ???????????????????????????????????????????? | | ???????????????????????????????????????????? | | ???????????????????????????????????????????? | | ???????????????????????????????????????????? | | ???????????????????????????????????????????? | | ???????????????????????????????????????????? | | ???????????????????????????????????????????? | | ???????????????????????????????????????????? | | ???????????????????????????????????????????? | | ???????????????????????????????????????????? | | ???????????????????????????????????????????? | | ???????????????????????????????????????????? | +----------------------------------------------------+ Best States ------------- Heat Dissipation 28 Energy Generation 10 Energy Capacity 250 Matter Stores 300 Matter Capacity 300 Sight Range 16 Terrain Scan Density 10 Utility Shielding 33 Evasion (%) 55 Item Schematics ----------------- None Robot Schematics ------------------ None Fabricated ------------ Nothing Repaired ---------- Nothing Studied --------- None Alien Tech Used ----------------- None Achievements -------------- None Challenges ------------ None Game ------ Seed DimensionalSensorInterface Manual? 0 Play Time 00:08:46 Cumulative 17.1 hours Start 2026.02.27 @ 21:50:50 End 2026.02.27 @ 22:00:46 Sessions 1 Manual Loads 0 Difficulty Rogue Special Mode None Game No. 33 Rogue 33 Adventurer 0 Explorer 0 Win Type - Total 0 Types 0/0/0/0/0/0/0/0/0/0 Lore% 5 Gallery% 15 Achievement% 11 Wizard Run 0 Options --------- Layout 0 ASCII 0 Keyboard 1 Movement Arrows Keybinds 0 Fullscreen 2 Font 24/Smallcaps Map View 76x50 Zoom Use 0% Tactical HUD 0 Map Filters NONE Filters NONE Steam 1 RUN: 1cfa8da2-d1c6-4e35-9da3-829f051fd0dc